fUST/lending_fUST_20260306
["ID","MTS","AMOUNT","RATE_DAILY","PERIOD"]
[407739191,1772726409778,159.17,4e-05,2]
[407739192,1772726437572,1167.29467049,0.000157,120]
[407739193,1772726451949,5000.0,4.002e-05,2]
[407739195,1772726462491,-159.17,4.1e-05,2]
[407739196,1772726462524,-159.17,4.1e-05,2]
[407739197,1772726462551,-159.17,4.103e-05,2]
[407739198,1772726462566,-40.2500889,4.103e-05,2]
[407739199,1772726462577,-118.9199111,4.144e-05,2]
[407739200,1772726462592,-11.46288364,4.144e-05,2]
[407739206,1772726733837,200.0,0.00013888,120]
[407739207,1772726883978,259.06,3.8e-06,2]
[407739210,1772727008829,239.31,4e-05,2]
[407739211,1772727009570,239.31,4e-05,2]
[407739212,1772727010407,239.31,4e-05,2]
[407739213,1772727011204,239.31,4e-05,2]
[407739214,1772727011936,239.31,4e-05,2]
[407739215,1772727012671,239.31,4e-05,2]
[407739216,1772727013826,239.31,4e-05,2]
[407739237,1772727032109,-950.59875827,4.082e-05,2]
[407739239,1772727032122,-4049.40124173,4.082e-05,2]
[407739241,1772727032131,-239.31,4.1e-05,2]
[407739243,1772727032141,-239.31,4.1e-05,2]
[407739245,1772727032150,-126.36380113,4.103e-05,2]
[407739246,1772727032162,-69.06788599,4.103e-05,2]
[407739247,1772727032172,-724.29143026,4.144e-05,2]
[407739249,1772727032182,-159.17,4.2e-05,2]
[407739251,1772727032193,-159.17,4.2e-05,2]
[407739253,1772727032203,-159.17,4.3e-05,2]
[407739254,1772727032213,-159.17,4.3e-05,2]
[407739255,1772727032222,-1200.0,4.317e-05,2]
[407739256,1772727032232,-854.674225,4.319e-05,2]
[407739257,1772727032242,-159.17,4.4e-05,2]
[407739258,1772727032252,-159.17,4.4e-05,2]
[407739259,1772727032261,-300.0,4.489e-05,2]
[407739260,1772727032271,-300.0,4.489e-05,2]
[407739261,1772727032280,-300.0,4.489e-05,2]
[407739262,1772727032289,-177.0,4.49e-05,2]
[407739263,1772727032299,-854.674225,4.493e-05,2]
[407739264,1772727032309,-300.0,4.582e-05,2]
[407739265,1772727032318,-300.0,4.582e-05,2]
[407739266,1772727032327,-300.0,4.582e-05,2]
[407739267,1772727032337,-300.0,4.582e-05,2]
[407739268,1772727032348,-300.0,4.582e-05,2]
[407739269,1772727032357,-300.0,4.582e-05,2]
[407739270,1772727032367,-300.0,4.582e-05,2]
[407739271,1772727032376,-300.0,4.582e-05,2]
[407739272,1772727032385,-300.0,4.582e-05,2]
[407739273,1772727032394,-300.0,4.582e-05,2]
[407739274,1772727032403,-300.0,4.582e-05,2]
[407739275,1772727032412,-300.0,4.582e-05,2]
[407739276,1772727032421,-300.0,4.582e-05,2]
[407739277,1772727032430,-300.0,4.582e-05,2]
[407739278,1772727032439,-300.0,4.582e-05,2]
[407739279,1772727032448,-854.674225,4.667e-05,2]
[407739280,1772727032459,-600.0,4.673e-05,2]
[407739281,1772727032468,-70446.39800873,4.7e-05,2]
[407739282,1772727032479,-5004.31354771,4.7e-05,2]
[407739331,1772727038278,-14048.77019151,4.7e-05,2]
[407739333,1772727038292,-10300.0,4.7e-05,2]
[407739335,1772727038303,-284.196,4.7e-05,2]
[407739358,1772727040621,-27593.23705272,4.7e-05,2]
[407739359,1772727040632,-3101.77737342,4.7e-05,2]
[407739360,1772727040644,-35416.5,4.7e-05,2]
[407739372,1772727043415,-645.17983262,4.653e-05,2]
[407739373,1772727043459,-1154.28534846,4.653e-05,2]
[407739374,1772727043471,-622.06039237,4.653e-05,2]
[407739399,1772727046139,-1136.279,4.653e-05,2]
[407739400,1772727046151,-1442.19542655,4.653e-05,2]
[407739401,1772727046160,-8720.39860463,4.7e-05,2]
[407739404,1772727103173,-151.0,8.1e-05,30]
[407739405,1772727107200,478.61,4.001e-05,2]
[407739407,1772727150858,200.0,0.00014444,120]
[407739414,1772727263247,5000.0,4.002e-05,2]
[407739415,1772727285952,5000.0,4.002e-05,2]
[407739416,1772727308770,5000.0,4.002e-05,2]
[407739418,1772727331225,5000.0,4.002e-05,2]
[407739420,1772727347449,915.91,4e-05,2]
[407739421,1772727353670,707.92238309,3.979e-05,2]
[407739422,1772727354909,5000.0,4.002e-05,2]
[407739423,1772727377305,5000.0,4.002e-05,2]
[407739424,1772727400014,5000.0,4.002e-05,2]
[407739425,1772727422676,5000.0,4.002e-05,2]
[407739426,1772727444924,5000.0,4.002e-05,2]
[407739427,1772727468921,5000.0,4.002e-05,2]
[407739428,1772727474555,2571.3,4.002e-05,2]
[407739429,1772727491786,5000.0,4.002e-05,2]
[407739431,1772727514746,5000.0,4.002e-05,2]
[407739432,1772727537304,5000.0,4.002e-05,2]
[407739433,1772727603223,195.0,4e-05,2]
[407739435,1772727632745,200.0,0.00015557,120]
[407739437,1772727755920,5000.0,4.002e-05,2]
[407739443,1772727979040,5000.0,4.002e-05,2]
[407739444,1772727990852,200.0,0.00015548,120]
[407739445,1772728001459,5000.0,4.002e-05,2]
[407739447,1772728024734,5000.0,4.002e-05,2]
[407739448,1772728031370,7580.06671254,0.00015,120]
[407739450,1772728047104,5000.0,4.002e-05,2]
[407739451,1772728069472,5000.0,4.002e-05,2]
[407739452,1772728092577,5000.0,4.002e-05,2]
[407739453,1772728116486,5000.0,4.002e-05,2]
[407739456,1772728139188,5000.0,4.002e-05,2]
[407739457,1772728161326,5000.0,4.002e-05,2]
[407739458,1772728184032,5000.0,4.002e-05,2]
[407739459,1772728203077,176.27,4e-05,2]
[407739460,1772728228652,-500.0,0.00038633,120]
[407739461,1772728228678,-7569.583706,0.00038633,120]
[407739462,1772728228703,-5108.12400373,0.00038633,120]
[407739463,1772728228728,-10297.70134479,0.00038633,120]
[407739464,1772728228758,-3000.0,0.00038633,120]
[407739465,1772728228790,-1548.66200186,0.00038633,120]
[407739466,1772728228821,-2900.0,0.00038633,120]
[407739467,1772728228848,-5004.35978771,0.00038633,120]
[407739468,1772728228877,-2075.05237107,0.00038633,120]
[407739469,1772728228903,-4266.0,0.00038633,120]
[407739470,1772728228932,-5000.0,0.00038633,120]
[407739471,1772728228959,-4953.62773891,0.00038633,120]
[407739472,1772728228986,-2871.0,0.00038633,120]
[407739473,1772728229012,-26504.2486058,0.00038633,60]
[407739474,1772728229038,-158.6114092,0.00038633,30]
[407739475,1772728229064,-4311.0015403,0.00038633,31]
[407739476,1772728229094,-32612.0,0.00038633,120]
[407739477,1772728229121,-2755.15512,0.00038633,60]
[407739478,1772728229148,-13000.0,0.00038633,30]
[407739479,1772728229175,-1000.0,0.00038633,120]
[407739480,1772728229200,-2000.0,0.00038633,120]
[407739481,1772728229226,-2000.0,0.00038633,120]
[407739482,1772728229252,-2000.0,0.00038633,120]
[407739483,1772728229277,-2000.0,0.00038633,120]
[407739484,1772728229306,-1741.783986,0.00038633,120]
[407739485,1772728229333,-1523517.55,0.00038633,120]
[407739486,1772728229363,-7035.0,0.00038633,60]
[407739487,1772728229391,-6848.6169,0.00038633,120]
[407739488,1772728229417,-5000.0,0.00038633,120]
[407739489,1772728229444,-5000.0,0.00038633,120]
[407739490,1772728229471,-5000.0,0.00038633,120]
[407739491,1772728229499,-5000.0,0.00038633,120]
[407739492,1772728229524,-5000.0,0.00038633,120]
[407739493,1772728229550,-5000.0,0.00038633,120]
[407739494,1772728229576,-5000.0,0.00038633,120]
[407739495,1772728229603,-5000.0,0.00038633,120]
[407739496,1772728229630,-5000.0,0.00038633,120]
[407739497,1772728229657,-5000.0,0.00038633,120]
[407739498,1772728229685,-5000.0,0.00038633,120]
[407739499,1772728229715,-5000.0,0.00038633,120]
[407739500,1772728229742,-5000.0,0.00038633,120]
[407739501,1772728229769,-5000.0,0.00038633,120]
[407739502,1772728229804,-5000.0,0.00038633,120]
[407739503,1772728229832,-5000.0,0.00038633,120]
[407739504,1772728229862,-5000.0,0.00038633,120]
[407739505,1772728230240,-5000.0,0.00038633,120]
[407739506,1772728230271,-5000.0,0.00038633,120]
[407739507,1772728230296,-5000.0,0.00038633,120]
[407739508,1772728230322,-5000.0,0.00038633,120]
[407739509,1772728230348,-5000.0,0.00038633,120]
[407739510,1772728230374,-5000.0,0.00038633,120]
[407739511,1772728230401,-5000.0,0.00038633,120]
[407739512,1772728230426,-5000.0,0.00038633,120]
[407739513,1772728230452,-5000.0,0.00038633,120]
[407739514,1772728230478,-679.0,0.00038633,120]
[407739515,1772728230504,-415.949659,0.00038633,120]
[407739516,1772728230532,-985.17,0.00038633,120]
[407739517,1772728230558,-985.17,0.00038633,120]
[407739518,1772728230584,-985.17,0.00038633,120]
[407739519,1772728230612,-985.17,0.00038633,120]
[407739520,1772728230641,-985.17,0.00038633,120]
[407739521,1772728230668,-985.17,0.00038633,120]
[407739522,1772728230695,-985.17,0.00038633,120]
[407739523,1772728230726,-985.17,0.00038633,120]
[407739524,1772728230753,-985.17,0.00038633,120]
[407739525,1772728230780,-985.17,0.00038633,120]
[407739526,1772728230806,-985.17,0.00038633,120]
[407739527,1772728230832,-985.17,0.00038633,120]
[407739528,1772728230859,-985.17,0.00038633,120]
[407739529,1772728230887,-985.17,0.00038633,120]
[407739530,1772728230914,-985.17,0.00038633,120]
[407739531,1772728230940,-985.17,0.00038633,120]
[407739532,1772728230968,-985.17,0.00038633,120]
[407739533,1772728230995,-985.17,0.00038633,120]
[407739534,1772728231021,-985.17,0.00038633,120]
[407739535,1772728231048,-985.17,0.00038633,120]
[407739536,1772728231077,-985.17,0.00038633,120]
[407739537,1772728231103,-985.17,0.00038633,120]
[407739538,1772728231130,-985.17,0.00038633,120]
[407739539,1772728231158,-985.31443778,0.00038633,120]
[407739540,1772728231183,-114943.23353533,0.00038633,30]
[407739541,1772728231209,-1549.48100093,0.00038633,120]
[407739542,1772728231236,-292.33050047,0.00038633,120]
[407739543,1772728231260,-36250.10021363,0.00038633,30]
[407739544,1772728231287,-3217.0,0.00038633,120]
[407739545,1772728231312,-370724.36021875,0.00038633,120]
[407739546,1772728231337,-5000.0,0.00038633,120]
[407739547,1772728231362,-998842.0,0.00038633,120]
[407739548,1772728231387,-5112.7365601,0.00038633,120]
[407739549,1772728231413,-200.0,0.00038633,120]
[407739550,1772728231439,-200.0,0.00038633,120]
[407739551,1772728231464,-2200.0,0.00038633,30]
[407739552,1772728231489,-200.0,0.00038633,120]
[407739553,1772728231516,-200.0,0.00038633,120]
[407739554,1772728231542,-200.0,0.00038633,120]
[407739555,1772728231568,-200.0,0.00038633,120]
[407739556,1772728231610,-200.0,0.00038633,120]
[407739557,1772728231638,-200.0,0.00038633,120]
[407739558,1772728231665,-200.0,0.00038633,120]
[407739559,1772728231692,-200.0,0.00038633,120]
[407739560,1772728231720,-200.0,0.00038633,120]
[407739561,1772728231750,-200.0,0.00038633,120]
[407739562,1772728231782,-200.0,0.00038633,120]
[407739563,1772728231810,-200.0,0.00038633,120]
[407739564,1772728231840,-200.0,0.00038633,120]
[407739565,1772728231868,-200.0,0.00038633,120]
[407739567,1772728231899,-200.0,0.00038633,120]
[407739571,1772728231926,-335.0,0.00038633,120]
[407739578,1772728231955,-94098.56649569,0.00038633,120]
[407739583,1772728231982,-4000.0,0.00038633,30]
[407739590,1772728232011,-38984.8,0.00038633,120]
[407739597,1772728232040,-500.0,0.00038633,120]
[407739605,1772728232070,-463.31,0.00038633,120]
[407739609,1772728232101,-200000.0,0.00038633,120]
[407739613,1772728232132,-200000.0,0.00038633,120]
[407739617,1772728232162,-157488.293584,0.00038633,120]
[407739621,1772728232190,-5041.1809582,0.00038633,120]
[407739624,1772728232218,-1000.0,0.00038633,120]
[407739629,1772728232251,-1000.0,0.00038633,120]
[407739633,1772728232280,-1000.0,0.00038633,120]
[407739637,1772728232308,-1000.0,0.00038633,120]
[407739640,1772728232338,-1000.0,0.00038633,120]
[407739645,1772728232369,-1000.0,0.00038633,120]
[407739648,1772728232399,-1000.0,0.00038633,120]
[407739652,1772728232426,-1000.0,0.00038633,120]
[407739656,1772728232456,-1000.0,0.00038633,120]
[407739660,1772728232484,-5883.63693163,0.00038633,30]
[407739664,1772728232512,-6982.08896365,0.00038633,120]
[407739665,1772728232541,-390.0,0.00038633,120]
[407739666,1772728232568,-1449.88118321,0.00038633,31]
[407739667,1772728232596,-166.57034187,0.00038633,60]
[407739668,1772728232624,-159.69509935,0.00038633,120]
[407739669,1772728232651,-4338.0,0.00038633,120]
[407739670,1772728232677,-3029.0,0.00038633,120]
[407739672,1772728232703,-500.0,0.00038633,120]
[407739673,1772728232729,-500.0,0.00038633,120]
[407739674,1772728232755,-500.0,0.00038633,120]
[407739675,1772728232782,-500.0,0.00038633,120]
[407739676,1772728232808,-500.0,0.00038633,120]
[407739677,1772728232834,-500.0,0.00038633,120]
[407739678,1772728232859,-500.0,0.00038633,120]
[407739679,1772728232887,-500.0,0.00038633,120]
[407739680,1772728232912,-500.0,0.00038633,120]
[407739681,1772728232937,-500.0,0.00038633,120]
[407739682,1772728232962,-500.0,0.00038633,120]
[407739683,1772728232988,-156.67267928,0.00038633,120]
[407739684,1772728233016,-4300.0,0.00038633,120]
[407739685,1772728233044,-152.88018,0.00038633,60]
[407739686,1772728233070,-351.74994694,0.00038633,120]
[407739704,1772728233336,-157.5311656,0.00038633,120]
[407739708,1772728233364,-212.23595917,0.00038633,120]
[407739712,1772728233392,-1750.78003786,0.00038633,120]
[407739716,1772728233418,-313.12151033,0.00038633,120]
[407739720,1772728233446,-254.3619287,0.00038633,120]
[407739723,1772728233473,-1601.98268531,0.00038633,120]
[407739727,1772728233500,-500.0,0.00038633,120]
[407739730,1772728233527,-500.46370295,0.00038633,120]
[407739734,1772728233552,-500.0,0.00038633,120]
[407739737,1772728233578,-500.0,0.00038633,120]
[407739741,1772728233603,-500.0,0.00038633,120]
[407739745,1772728233628,-500.0,0.00038633,120]
[407739748,1772728233653,-391.01476195,0.00038633,120]
[407739750,1772728233680,-500.0,0.00038633,120]
[407739752,1772728233706,-500.0,0.00038633,120]
[407739756,1772728233732,-500.0,0.00038633,120]
[407739758,1772728233758,-169.48552345,0.00038633,120]
[407739761,1772728233784,-500.0,0.00038633,120]
[407739762,1772728233809,-500.0,0.00038633,120]
[407739763,1772728233835,-500.0,0.00038633,120]
[407739764,1772728233861,-500.0,0.00038633,120]
[407739765,1772728233888,-500.0,0.00038633,120]
[407739766,1772728233915,-216.77593401,0.00038633,120]
[407739767,1772728233940,-500.0,0.00038633,120]
[407739768,1772728233966,-500.0,0.00038633,120]
[407739769,1772728233992,-500.0,0.00038633,120]
[407739770,1772728234018,-624.11769905,0.00038633,120]
[407739771,1772728234045,-500.0,0.00038633,120]
[407739772,1772728234073,-500.0,0.00038633,120]
[407739773,1772728234101,-500.0,0.00038633,120]
[407739774,1772728234128,-500.0,0.00038633,120]
[407739775,1772728234154,-500.0,0.00038633,120]
[407739776,1772728234180,-500.0,0.00038633,120]
[407739777,1772728234206,-500.0,0.00038633,120]
[407739778,1772728234234,-500.0,0.00038633,120]
[407739779,1772728234260,-500.0,0.00038633,120]
[407739780,1772728234287,-500.0,0.00038633,120]
[407739781,1772728234313,-418.69864212,0.00038633,120]
[407739782,1772728234340,-500.0,0.00038633,120]
[407739783,1772728234366,-500.0,0.00038633,120]
[407739784,1772728234394,-366.26280321,0.00038633,120]
[407739785,1772728234421,-500.0,0.00038633,120]
[407739786,1772728234449,-500.0,0.00038633,120]
[407739787,1772728234476,-500.0,0.00038633,120]
[407739788,1772728234503,-500.0,0.00038633,120]
[407739789,1772728234529,-500.0,0.00038633,120]
[407739790,1772728234555,-500.0,0.00038633,120]
[407739791,1772728234582,-500.0,0.00038633,120]
[407739792,1772728234607,-500.0,0.00038633,120]
[407739793,1772728234634,-500.0,0.00038633,120]
[407739794,1772728234661,-500.0,0.00038633,120]
[407739795,1772728234688,-500.0,0.00038633,120]
[407739796,1772728234716,-500.0,0.00038633,120]
[407739797,1772728234744,-500.60341184,0.00038633,120]
[407739798,1772728234771,-500.0,0.00038633,120]
[407739799,1772728234798,-500.0,0.00038633,120]
[407739800,1772728234825,-500.0,0.00038633,120]
[407739801,1772728234854,-500.0,0.00038633,120]
[407739802,1772728234883,-500.0,0.00038633,120]
[407739803,1772728234909,-500.0,0.00038633,120]
[407739804,1772728234935,-500.0,0.00038633,120]
[407739805,1772728234961,-500.0,0.00038633,120]
[407739806,1772728234988,-500.0,0.00038633,120]
[407739807,1772728235015,-196.49347047,0.00038633,120]
[407739808,1772728235041,-500.0,0.00038633,120]
[407739809,1772728235067,-500.0,0.00038633,120]
[407739810,1772728235098,-500.0,0.00038633,120]
[407739811,1772728235125,-500.0,0.00038633,120]
[407739812,1772728235152,-500.0,0.00038633,120]
[407739813,1772728235178,-496.03959866,0.00038633,120]
[407739814,1772728235205,-500.0,0.00038633,120]
[407739815,1772728235232,-500.0,0.00038633,120]
[407739816,1772728235258,-500.0,0.00038633,120]
[407739817,1772728235284,-500.0,0.00038633,120]
[407739818,1772728235312,-500.0,0.00038633,120]
[407739819,1772728235338,-500.0,0.00038633,120]
[407739820,1772728235366,-500.0,0.00038633,120]
[407739821,1772728235393,-500.0,0.00038633,120]
[407739822,1772728235419,-500.0,0.00038633,120]
[407739823,1772728235446,-500.0,0.00038633,120]
[407739824,1772728235472,-384.15963694,0.00038633,120]
[407739825,1772728235499,-500.0,0.00038633,120]
[407739826,1772728235527,-500.0,0.00038633,120]
[407739827,1772728235554,-500.0,0.00038633,120]
[407739828,1772728235581,-500.0,0.00038633,120]
[407739829,1772728235609,-500.0,0.00038633,120]
[407739830,1772728235636,-500.0,0.00038633,120]
[407739831,1772728235663,-500.0,0.00038633,120]
[407739832,1772728235690,-500.0,0.00038633,120]
[407739833,1772728235717,-500.0,0.00038633,120]
[407739834,1772728235744,-500.0,0.00038633,120]
[407739835,1772728235771,-500.0,0.00038633,120]
[407739836,1772728235798,-448.67838567,0.00038633,120]
[407739837,1772728235825,-500.0,0.00038633,120]
[407739838,1772728235852,-500.0,0.00038633,120]
[407739839,1772728235879,-571.97751426,0.00038633,120]
[407739840,1772728235907,-500.0,0.00038633,60]
[407739841,1772728235934,-500.24092042,0.00038633,60]
[407739842,1772728235962,-500.0,0.00038633,120]
[407739843,1772728235989,-500.0,0.00038633,120]
[407739844,1772728236017,-500.0,0.00038633,120]
[407739845,1772728236045,-501.14846311,0.00038633,120]
[407739846,1772728236075,-500.0,0.00038633,120]
[407739847,1772728236248,-500.0,0.00038633,120]
[407739848,1772728236313,-500.0,0.00038633,120]
[407739849,1772728236340,-501.20398769,0.00038633,120]
[407739850,1772728236367,-500.0,0.00038633,120]
[407739851,1772728236392,-500.0,0.00038633,120]
[407739852,1772728236420,-500.0,0.00038633,120]
[407739853,1772728236447,-500.0,0.00038633,120]
[407739854,1772728236474,-500.0,0.00038633,120]
[407739855,1772728236501,-500.0,0.00038633,120]
[407739856,1772728236530,-500.0,0.00038633,120]
[407739857,1772728236557,-500.0,0.00038633,120]
[407739858,1772728236585,-500.0,0.00038633,120]
[407739859,1772728236612,-171.09386345,0.00038633,120]
[407739860,1772728236640,-500.0,0.00038633,120]
[407739861,1772728236668,-500.0,0.00038633,120]
[407739862,1772728236699,-500.0,0.00038633,120]
[407739863,1772728236730,-501.20311812,0.00038633,120]
[407739864,1772728236758,-1337.61,0.00038633,120]
[407739865,1772728236787,-1337.61,0.00038633,120]
[407739866,1772728236817,-1337.61,0.00038633,120]
[407739867,1772728236845,-510.11664752,0.00038633,120]
[407739868,1772728236874,-1337.61,0.00038633,120]
[407739869,1772728236901,-500.0,0.00038633,120]
[407739870,1772728236928,-1337.61,0.00038633,120]
[407739871,1772728236955,-500.0,0.00038633,120]
[407739872,1772728236981,-1337.61,0.00038633,120]
[407739873,1772728237007,-500.0,0.00038633,120]
[407739874,1772728237033,-500.0,0.00038633,120]
[407739875,1772728237057,-1337.61,0.00038633,120]
[407739876,1772728237087,-500.0,0.00038633,120]
[407739877,1772728237112,-1337.61,0.00038633,120]
[407739878,1772728237139,-500.0,0.00038633,120]
[407739879,1772728237167,-1337.61,0.00038633,120]
[407739880,1772728237193,-500.0,0.00038633,120]
[407739881,1772728237219,-1337.61,0.00038633,120]
[407739882,1772728237244,-500.0,0.00038633,120]
[407739883,1772728237270,-1337.61,0.00038633,120]
[407739884,1772728237297,-500.0,0.00038633,120]
[407739885,1772728237322,-1337.61,0.00038633,120]
[407739886,1772728237347,-500.0,0.00038633,120]
[407739887,1772728237414,-1337.61,0.00038633,120]
[407739888,1772728237475,-1337.61,0.00038633,120]
[407739889,1772728237536,-1337.61,0.00038633,120]
[407739890,1772728237601,-1337.61,0.00038633,120]
[407739891,1772728237668,-1337.61,0.00038633,120]
[407739892,1772728237738,-1337.61,0.00038633,120]
[407739893,1772728237810,-1337.61,0.00038633,120]
[407739894,1772728237875,-1337.61,0.00038633,120]
[407739896,1772728237938,-1337.61,0.00038633,120]
[407739897,1772728238000,-1337.61,0.00038633,120]
[407739900,1772728238065,-1337.61,0.00038633,120]
[407739903,1772728238129,-1337.67326806,0.00038633,120]
[407739906,1772728238190,-500.0,0.00038633,120]
[407739907,1772728238251,-1264.89,0.00038633,120]
[407739908,1772728238313,-500.0,0.00038633,120]
[407739910,1772728238380,-1264.89,0.00038633,120]
[407739911,1772728238448,-1264.89,0.00038633,120]
[407739912,1772728238512,-500.0,0.00038633,120]
[407739913,1772728238579,-1264.89,0.00038633,120]
[407739914,1772728238643,-1264.89,0.00038633,120]
[407739915,1772728238707,-500.0,0.00038633,120]
[407739916,1772728238770,-1264.89,0.00038633,120]
[407739917,1772728238832,-500.0,0.00038633,120]
[407739918,1772728238895,-1264.89,0.00038633,120]
[407739919,1772728238958,-500.0,0.00038633,120]
[407739920,1772728239018,-1264.89,0.00038633,120]
[407739921,1772728239079,-294.43039302,0.00038633,120]
[407739922,1772728239139,-1264.89,0.00038633,120]
[407739923,1772728239199,-1617.01,0.00038633,120]
[407739924,1772728239264,-1617.01,0.00038633,120]
[407739925,1772728239324,-1617.01,0.00038633,120]
[407739926,1772728239384,-1617.01,0.00038633,120]
[407739927,1772728239445,-1617.01,0.00038633,120]
[407739928,1772728239503,-1617.01,0.00038633,120]
[407739929,1772728239565,-1617.01,0.00038633,120]
[407739930,1772728239626,-1617.01,0.00038633,120]
[407739931,1772728239691,-1617.01,0.00038633,120]
[407739932,1772728239759,-1617.01,0.00038633,120]
[407739933,1772728239827,-1617.01,0.00038633,120]
[407739934,1772728239893,-1617.01,0.00038633,120]
[407739935,1772728239962,-1264.89,0.00038633,120]
[407739936,1772728240033,-1617.01,0.00038633,120]
[407739937,1772728240098,-1264.89,0.00038633,120]
[407739939,1772728240165,-1617.01,0.00038633,120]
[407739940,1772728240231,-1264.89,0.00038633,120]
[407739941,1772728240296,-1264.89,0.00038633,120]
[407739944,1772728240365,-1617.01,0.00038633,120]
[407739945,1772728240431,-500.0,0.00038633,120]
[407739946,1772728240495,-478.65293623,0.00038633,120]
[407739947,1772728240559,-1617.01,0.00038633,120]
[407739948,1772728240626,-1264.89,0.00038633,120]
[407739949,1772728240692,-500.0,0.00038633,120]
[407739953,1772728240759,-1617.01,0.00038633,120]
[407739954,1772728240826,-1264.89,0.00038633,120]
[407739955,1772728240892,-500.0,0.00038633,120]
[407739956,1772728240958,-1617.01,0.00038633,120]
[407739959,1772728241025,-1264.89,0.00038633,120]
[407739960,1772728241091,-500.0,0.00038633,120]
[407739961,1772728241159,-1264.89,0.00038633,120]
[407739962,1772728241224,-1617.01,0.00038633,120]
[407739963,1772728241296,-500.0,0.00038633,120]
[407739964,1772728241364,-1264.89,0.00038633,120]
[407739965,1772728241431,-1617.01,0.00038633,120]
[407739966,1772728241497,-500.0,0.00038633,120]
[407739967,1772728241740,-1264.89,0.00038633,120]
[407739968,1772728241803,-500.0,0.00038633,120]
[407739969,1772728241863,-1264.89,0.00038633,120]
[407739970,1772728241926,-1617.01,0.00038633,120]
[407739971,1772728241988,-1264.89,0.00038633,120]
[407739972,1772728242050,-500.0,0.00038633,120]
[407739973,1772728242113,-1617.01,0.00038633,120]
[407739974,1772728242180,-1264.89,0.00038633,120]
[407739975,1772728242240,-500.0,0.00038633,120]
[407739976,1772728242300,-1617.01,0.00038633,120]
[407739977,1772728242363,-500.0,0.00038633,120]
[407739978,1772728242425,-1264.89,0.00038633,120]
[407739979,1772728242487,-1617.05502234,0.00038633,120]
[407739980,1772728242549,-500.0,0.00038633,120]
[407739981,1772728242616,-1265.06185069,0.00038633,120]
[407739982,1772728242680,-500.0,0.00038633,120]
[407739983,1772728242743,-500.0,0.00038633,120]
[407739984,1772728242807,-500.0,0.00038633,120]
[407739985,1772728242870,-500.0,0.00038633,120]
[407739986,1772728242931,-500.0,0.00038633,120]
[407739987,1772728242993,-500.0,0.00038633,120]
[407739990,1772728243056,-500.0,0.00038633,120]
[407739991,1772728243120,-500.0,0.00038633,120]
[407739994,1772728243186,-500.0,0.00038633,120]
[407739995,1772728243251,-500.0,0.00038633,120]
[407739996,1772728243313,-500.0,0.00038633,120]
[407739997,1772728243376,-500.0,0.00038633,120]
[407739998,1772728243441,-500.0,0.00038633,120]
[407739999,1772728243506,-518.63958793,0.00038633,120]
[407740000,1772728243569,-542.69706776,0.00038633,120]
[407740001,1772728243633,-500.0,0.00038633,120]
[407740002,1772728243703,-500.0,0.00038633,120]
[407740003,1772728243778,-500.0,0.00038633,120]
[407740005,1772728243850,-500.26589967,0.00038633,120]
[407740006,1772728243922,-500.0,0.00038633,120]
[407740007,1772728243992,-500.0,0.00038633,120]
[407740008,1772728244075,-226.59831879,0.00038633,120]
[407740009,1772728244149,-500.0,0.00038633,120]
[407740010,1772728244227,-500.0,0.00038633,120]
[407740011,1772728244296,-500.0,0.00038633,120]